fUST/lending_fUST_20251129
["ID","MTS","AMOUNT","RATE_DAILY","PERIOD"]
[395047926,1764372667935,-500.0,0.00017534,2]
[395047927,1764372667947,-869.6,0.00017534,2]
[395047928,1764372667957,-7824.54,0.00017534,2]
[395047929,1764372667968,-1352.28,0.00017534,2]
[395047930,1764372667980,-500.0,0.00017534,2]
[395047931,1764372667991,-3967.65,0.00017534,2]
[395047932,1764372668002,-700.5,0.00017534,2]
[395047933,1764372668013,-4443.57,0.00017534,2]
[395047934,1764372668024,-952.39,0.00017534,2]
[395047935,1764372668035,-500.0,0.00017534,2]
[395047936,1764372668046,-2399.87,0.00017534,2]
[395047937,1764372668058,-500.0,0.00017534,2]
[395047938,1764372668070,-500.0,0.00017534,2]
[395047939,1764372668082,-500.0,0.00017534,2]
[395047940,1764372668093,-739.31,0.00017534,2]
[395047941,1764372668105,-207.08573234,0.00017534,2]
[395047942,1764372668115,-699.9,0.00017534,2]
[395047943,1764372668126,-500.0,0.00017534,2]
[395047944,1764372668138,-977.12,0.00017534,2]
[395047945,1764372668150,-631.83,0.00017534,2]
[395047946,1764372668161,-2440.22,0.00017534,2]
[395047947,1764372668173,-1914.45,0.00017534,2]
[395047948,1764372668184,-500.0,0.00017534,2]
[395047949,1764372668196,-972.65,0.00017534,2]
[395047950,1764372668207,-3043.8,0.00017534,2]
[395047951,1764372668218,-593.89,0.00017534,2]
[395047952,1764372668229,-1510.04,0.00017534,2]
[395047953,1764372668241,-1101.92,0.00017534,2]
[395047954,1764372668253,-622.78,0.00017534,2]
[395047955,1764372668264,-3776.01,0.00017534,2]
[395047956,1764372668276,-609.93,0.00017534,2]
[395047957,1764372668286,-594.08,0.00017534,2]
[395047958,1764372668298,-500.0,0.00017534,2]
[395047959,1764372668310,-500.0,0.00017534,2]
[395047960,1764372668322,-500.0,0.00017534,2]
[395047961,1764372668334,-500.0,0.00017534,2]
[395047962,1764372668345,-789.87,0.00017534,2]
[395047963,1764372668357,-500.0,0.00017534,2]
[395047964,1764372668368,-538.45,0.00017534,2]
[395047965,1764372668662,-743.61,0.00017534,2]
[395047966,1764372668774,-1519.83,0.00017534,2]
[395047967,1764372668795,-556.04421129,0.00017534,2]
[395047968,1764372668805,-648.6,0.00017534,2]
[395047969,1764372668814,-1080.24,0.00017534,2]
[395047970,1764372668824,-3113.95,0.00017534,2]
[395047971,1764372668833,-1011.32,0.00017534,2]
[395047972,1764372668843,-500.0,0.00017534,2]
[395047973,1764372668852,-1593.85,0.00017534,2]
[395047974,1764372668867,-1169.98,0.00017534,2]
[395047975,1764372668877,-689.09,0.00017534,2]
[395047976,1764372668887,-500.0,0.00017534,2]
[395047977,1764372668896,-3350.26,0.00017534,2]
[395047978,1764372668905,-3410.99,0.00017534,2]
[395047979,1764372668915,-10314.11,0.00017534,2]
[395047980,1764372668924,-3853.28,0.00017534,2]
[395047981,1764372668934,-500.0,0.00017534,2]
[395047982,1764372668943,-500.0,0.00017534,2]
[395047983,1764372668953,-500.0,0.00017534,2]
[395047984,1764372668962,-706.65,0.00017534,2]
[395047985,1764372668972,-310.69992033,0.00017534,2]
[395047986,1764372668981,-500.0,0.00017534,2]
[395047987,1764372668991,-500.0,0.00017534,2]
[395047988,1764372669000,-4235.14,0.00017534,2]
[395047989,1764372669010,-1077.53,0.00017534,2]
[395047990,1764372669020,-2764.79,0.00017534,2]
[395047991,1764372669029,-9314.33,0.00017534,2]
[395047992,1764372669039,-500.0,0.00017534,2]
[395047993,1764372669049,-500.0,0.00017534,2]
[395047994,1764372669058,-500.0,0.00017534,2]
[395047995,1764372669067,-500.0,0.00017534,2]
[395047996,1764372669077,-992.45,0.00017534,2]
[395047997,1764372669086,-500.0,0.00017534,2]
[395047998,1764372669096,-500.0,0.00017534,2]
[395047999,1764372669106,-500.0,0.00017534,2]
[395048000,1764372669116,-500.0,0.00017534,2]
[395048001,1764372669125,-711.68,0.00017534,2]
[395048002,1764372669135,-500.0,0.00017534,2]
[395048003,1764372669144,-2541.01,0.00017534,2]
[395048004,1764372669155,-934.11,0.00017534,2]
[395048005,1764372669164,-500.0,0.00017534,2]
[395048006,1764372669175,-1176.61,0.00017534,2]
[395048007,1764372669185,-626.5,0.00017534,2]
[395048008,1764372669194,-178.0,0.00017547,2]
[395048009,1764372669205,-520.6472916,0.00017568,2]
[395048010,1764372669215,-861.07309602,0.00017568,2]
[395048011,1764372669225,-1500.0,0.00017568,2]
[395048012,1764372669234,-1146.04122274,0.00017568,2]
[395048013,1764372669245,-1500.0,0.00017568,2]
[395048014,1764372669254,-1500.0,0.00017568,2]
[395048015,1764372669264,-1500.0,0.00017568,2]
[395048016,1764372669274,-1500.0,0.00017568,2]
[395048017,1764372669284,-1500.0,0.00017568,2]
[395048018,1764372669293,-1500.0,0.00017568,2]
[395048019,1764372669303,-1500.0,0.00017568,2]
[395048020,1764372669313,-1500.0,0.00017568,2]
[395048021,1764372669322,-1500.0,0.00017568,2]
[395048022,1764372669331,-1500.0,0.00017568,2]
[395048023,1764372669341,-1500.0,0.00017568,2]
[395048024,1764372669350,-1500.0,0.00017568,2]
[395048025,1764372669360,-1409.64450747,0.00017568,2]
[395048026,1764372669370,-1500.0,0.00017568,2]
[395048027,1764372669379,-1500.0,0.00017568,2]
[395048028,1764372669389,-951.07355338,0.00017568,2]
[395048029,1764372669398,-169.01398835,0.00017568,2]
[395048030,1764372669408,-1584.11693241,0.00017568,2]
[395048031,1764372669417,-1500.0,0.00017568,2]
[395048032,1764372669427,-466.21424654,0.00017568,2]
[395048033,1764372669436,-1500.0,0.00017568,2]
[395048034,1764372669446,-1500.0,0.00017568,2]
[395048035,1764372669456,-1500.0,0.00017568,2]
[395048036,1764372669465,-543.10709351,0.00017568,2]
[395048037,1764372669474,-568.56705157,0.00017568,2]
[395048038,1764372669484,-1500.0,0.00017568,2]
[395048039,1764372669494,-1500.0,0.00017568,2]
[395048040,1764372669503,-1593.75964706,0.00017568,2]
[395048041,1764372669513,-1500.0,0.00017568,2]
[395048042,1764372669522,-1500.0,0.00017568,2]
[395048043,1764372669531,-1500.0,0.00017568,2]
[395048044,1764372669541,-1500.0,0.00017568,2]
[395048045,1764372669550,-1500.0,0.00017568,2]
[395048046,1764372669561,-1500.0,0.00017568,2]
[395048047,1764372669570,-1500.82237197,0.00017568,2]
[395048048,1764372669580,-1500.0,0.00017568,2]
[395048049,1764372669589,-1500.0,0.00017568,2]
[395048050,1764372669598,-1500.0,0.00017568,2]
[395048051,1764372669608,-1500.0,0.00017568,2]
[395048052,1764372669618,-1500.0,0.00017568,2]
[395048053,1764372669627,-500.0,0.00017591,2]
[395048054,1764372669636,-2126.03664085,0.000176,2]
[395048055,1764372669646,-178.0,0.00017622,2]
[395048056,1764372669656,-160.0,0.00017635,8]
[395048057,1764372669665,-666.0,0.00017662,2]
[395048058,1764372669674,-178.0,0.00017678,2]
[395048059,1764372669684,-178.0,0.00017684,2]
[395048060,1764372669693,-178.0,0.00017714,2]
[395048061,1764372669702,-251.11897888,0.00017723,2]
[395048062,1764372669713,-500.0,0.00017788,2]
[395048063,1764372669723,-353.59244258,0.000178,3]
[395048064,1764372669732,-770.0,0.000178,2]
[395048065,1764372669742,-90520.12714462,0.000178,3]
[395048066,1764372669751,-500.0,0.00017808,2]
[395048067,1764372669761,-500.0,0.00017808,2]
[395048068,1764372669770,-759.29,0.00017808,2]
[395048069,1764372669781,-500.0,0.00017808,2]
[395048070,1764372669790,-500.0,0.00017808,2]
[395048071,1764372669800,-528.19,0.00017808,2]
[395048072,1764372669809,-500.0,0.00017808,2]
[395048073,1764372669818,-500.0,0.00017808,2]
[395048074,1764372669828,-500.0,0.00017808,2]
[395048075,1764372669837,-668.24,0.00017808,2]
[395048076,1764372669847,-676.39,0.00017808,2]
[395048077,1764372669858,-500.0,0.00017808,2]
[395048078,1764372669870,-500.0,0.00017808,2]
[395048079,1764372669879,-500.0,0.00017808,2]
[395048080,1764372669889,-362.98533812,0.00017808,2]
[395048081,1764372669899,-588.95,0.00017808,2]
[395048082,1764372669909,-516.98,0.00017808,2]
[395048083,1764372669919,-500.0,0.00017808,2]
[395048084,1764372669928,-500.0,0.00017808,2]
[395048085,1764372669939,-500.0,0.00017808,2]
[395048086,1764372669948,-500.0,0.00017808,2]
[395048087,1764372669957,-569.36118445,0.00017808,2]
[395048088,1764372669967,-500.0,0.00017808,2]
[395048089,1764372669976,-500.0,0.00017808,2]
[395048090,1764372669986,-500.0,0.00017808,2]
[395048091,1764372669995,-500.0,0.00017808,2]
[395048092,1764372670005,-500.0,0.00017808,2]
[395048093,1764372670014,-579.11799886,0.00017808,2]
[395048094,1764372670023,-590.98,0.00017808,2]
[395048095,1764372670032,-1600.44,0.00017808,2]
[395048096,1764372670042,-500.0,0.00017808,2]
[395048097,1764372670051,-500.0,0.00017808,2]
[395048098,1764372670060,-500.0,0.00017808,2]
[395048099,1764372670070,-500.0,0.00017808,2]
[395048100,1764372670079,-1149.74,0.00017808,2]
[395048101,1764372670088,-535.42,0.00017808,2]
[395048102,1764372670097,-564.74,0.00017808,2]
[395048103,1764372670108,-789.99,0.00017808,2]
[395048104,1764372670117,-500.0,0.00017808,2]
[395048105,1764372670128,-619.79426044,0.00017808,2]
[395048106,1764372670138,-1749.39,0.00017808,2]
[395048107,1764372670148,-877.58,0.00017808,2]
[395048108,1764372670158,-500.0,0.00017808,2]
[395048109,1764372670168,-1045.4,0.00017808,2]
[395048110,1764372670177,-500.0,0.00017808,2]
[395048111,1764372670187,-500.0,0.00017808,2]
[395048112,1764372670198,-1078.66,0.00017808,2]
[395048113,1764372670208,-500.0,0.00017808,2]
[395048114,1764372670217,-645.4665149,0.00017808,2]
[395048115,1764372670227,-619.42,0.00017808,2]
[395048116,1764372670237,-500.0,0.00017808,2]
[395048117,1764372670246,-500.0,0.00017808,2]
[395048118,1764372670255,-500.0,0.00017808,2]
[395048119,1764372670265,-500.0,0.00017808,2]
[395048120,1764372670274,-500.0,0.00017808,2]
[395048121,1764372670283,-500.0,0.00017808,2]
[395048122,1764372670294,-1626.71,0.00017808,2]
[395048123,1764372670303,-500.0,0.00017808,2]
[395048124,1764372670313,-500.0,0.00017808,2]
[395048125,1764372670322,-982.61,0.00017808,2]
[395048126,1764372670332,-702.81,0.00017808,2]
[395048127,1764372670341,-895.19,0.00017808,2]
[395048128,1764372670351,-500.0,0.00017808,2]
[395048129,1764372670360,-500.0,0.00017808,2]
[395048130,1764372670370,-500.0,0.00017808,2]
[395048131,1764372670379,-786.71,0.00017808,2]
[395048132,1764372670389,-557.46,0.00017808,2]
[395048133,1764372670398,-625.18,0.00017808,2]
[395048134,1764372670407,-282.00134491,0.00017808,2]
[395048135,1764372670417,-662.94,0.00017808,2]
[395048136,1764372670427,-781.26,0.00017808,2]
[395048137,1764372670436,-506.83,0.00017808,2]
[395048138,1764372670445,-500.0,0.00017808,2]
[395048139,1764372670454,-311.52243593,0.00017808,2]
[395048140,1764372670464,-500.0,0.00017808,2]
[395048141,1764372670474,-578.17,0.00017808,2]
[395048142,1764372670484,-1345.53,0.00017808,2]
[395048143,1764372670494,-581.76,0.00017808,2]
[395048144,1764372670504,-774.86,0.00017808,2]
[395048145,1764372670514,-594.0,0.00017808,2]
[395048146,1764372670524,-1012.47,0.00017808,2]
[395048147,1764372670533,-500.0,0.00017808,2]
[395048148,1764372670543,-514.46,0.00017808,2]
[395048149,1764372670553,-500.0,0.00017808,2]
[395048150,1764372670563,-904.73,0.00017808,2]
[395048151,1764372670572,-500.0,0.00017808,2]
[395048152,1764372670582,-500.0,0.00017808,2]
[395048153,1764372670592,-500.0,0.00017808,2]
[395048154,1764372670601,-536.95,0.00017808,2]
[395048155,1764372670610,-500.0,0.00017808,2]
[395048156,1764372670619,-513.22,0.00017808,2]
[395048157,1764372670629,-674.92,0.00017808,2]
[395048158,1764372670639,-500.0,0.00017808,2]
[395048159,1764372670649,-1511.14,0.00017808,2]
[395048160,1764372670658,-500.0,0.00017808,2]
[395048161,1764372670667,-500.0,0.00017808,2]
[395048162,1764372670676,-500.0,0.00017808,2]
[395048163,1764372670686,-1283.06,0.00017808,2]
[395048164,1764372670695,-503.17,0.00017808,2]
[395048165,1764372670705,-500.0,0.00017808,2]
[395048166,1764372670714,-748.2,0.00017808,2]
[395048167,1764372670723,-1855.57,0.00017808,2]
[395048168,1764372670732,-737.99,0.00017808,2]
[395048169,1764372670741,-500.0,0.00017808,2]
[395048170,1764372670750,-500.0,0.00017808,2]
[395048171,1764372670759,-500.0,0.00017808,2]
[395048172,1764372670768,-500.0,0.00017808,2]
[395048173,1764372670777,-775.93,0.00017808,2]
[395048174,1764372670786,-500.0,0.00017808,2]
[395048175,1764372670795,-500.0,0.00017808,2]
[395048176,1764372670804,-664.85,0.00017808,2]
[395048177,1764372670814,-500.0,0.00017808,2]
[395048178,1764372670823,-1218.32,0.00017808,2]
[395048179,1764372670832,-500.0,0.00017808,2]
[395048180,1764372670842,-500.0,0.00017808,2]
[395048181,1764372670854,-500.0,0.00017808,2]
[395048182,1764372670868,-500.0,0.00017808,2]
[395048183,1764372670877,-500.0,0.00017808,2]
[395048184,1764372670886,-889.44,0.00017808,2]
[395048185,1764372670895,-1110.45,0.00017808,2]
[395048186,1764372670905,-500.0,0.00017808,2]
[395048187,1764372670914,-647.62,0.00017808,2]
[395048188,1764372670925,-2532.82,0.00017808,2]
[395048189,1764372670934,-500.0,0.00017808,2]
[395048190,1764372670944,-678.39,0.00017808,2]
[395048191,1764372670953,-500.0,0.00017808,2]
[395048192,1764372670963,-500.0,0.00017808,2]
[395048193,1764372670972,-500.0,0.00017808,2]
[395048194,1764372670981,-500.0,0.00017808,2]
[395048195,1764372670990,-500.0,0.00017808,2]
[395048196,1764372670999,-500.0,0.00017808,2]
[395048197,1764372671008,-500.0,0.00017808,2]
[395048198,1764372671017,-623.58,0.00017808,2]
[395048199,1764372671027,-559.34,0.00017808,2]
[395048200,1764372671036,-1961.98,0.00017808,2]
[395048201,1764372671045,-391.58676259,0.00017808,2]
[395048202,1764372671055,-500.0,0.00017808,2]
[395048203,1764372671064,-560.57,0.00017808,2]
[395048204,1764372671074,-500.0,0.00017808,2]
[395048205,1764372671083,-553.87,0.00017808,2]
[395048206,1764372671093,-500.0,0.00017808,2]
[395048207,1764372671102,-761.09,0.00017808,2]
[395048208,1764372671111,-584.54,0.00017808,2]
[395048209,1764372671121,-752.81,0.00017808,2]
[395048210,1764372671130,-500.0,0.00017808,2]
[395048211,1764372671139,-500.0,0.00017808,2]
[395048212,1764372671148,-500.0,0.00017808,2]
[395048213,1764372671158,-979.71,0.00017808,2]
[395048214,1764372671167,-600.47,0.00017808,2]
[395048215,1764372671177,-551.36,0.00017808,2]
[395048216,1764372671186,-500.83,0.00017808,2]
[395048217,1764372671196,-500.0,0.00017808,2]
[395048218,1764372671206,-207.1480322,0.00017808,2]
[395048219,1764372671215,-181.00574234,0.00017808,2]
[395048220,1764372671225,-500.0,0.00017808,2]
[395048221,1764372671234,-805.91,0.00017808,2]
[395048222,1764372671244,-500.0,0.00017808,2]
[395048223,1764372671253,-727.16,0.00017808,2]
[395048224,1764372671262,-967.6,0.00017808,2]
[395048225,1764372671271,-573.11005336,0.00017808,2]
[395048226,1764372671280,-500.0,0.00017808,2]
[395048227,1764372671289,-500.0,0.00017808,2]
[395048228,1764372671298,-812.08,0.00017808,2]
[395048229,1764372671308,-888.91,0.00017808,2]
[395048230,1764372671318,-500.0,0.00017808,2]
[395048231,1764372671327,-500.0,0.00017808,2]
[395048232,1764372671336,-531.64,0.00017808,2]
[395048233,1764372671345,-935.94,0.00017808,2]
[395048234,1764372671354,-151.0,0.00017808,2]
[395048235,1764372671363,-500.0,0.00017808,2]
[395048236,1764372671372,-877.57,0.00017808,2]
[395048237,1764372671381,-619.12,0.00017808,2]
[395048238,1764372671390,-1569.31,0.00017808,2]
[395048239,1764372671400,-500.0,0.00017808,2]
[395048240,1764372671409,-926.99,0.00017808,2]
[395048241,1764372671419,-748.14,0.00017808,2]
[395048242,1764372671429,-393.43,0.00017808,2]
[395048243,1764372671438,-1391.34,0.00017808,2]
[395048244,1764372671448,-500.0,0.00017808,2]
[395048245,1764372671457,-500.0,0.00017808,2]
[395048246,1764372671467,-827.09,0.00017808,2]
[395048247,1764372671476,-2852.36,0.00017808,2]
[395048248,1764372671486,-1623.87,0.00017808,2]
[395048249,1764372671495,-653.82,0.00017808,2]
[395048250,1764372671504,-1970.71,0.00017808,2]
[395048251,1764372671660,-2847.39,0.00017808,2]
[395048252,1764372671702,-500.0,0.00017808,2]
[395048253,1764372671712,-500.0,0.00017808,2]
[395048254,1764372671722,-1845.23,0.00017808,2]
[395048255,1764372671731,-1583.3,0.00017808,2]
[395048256,1764372671741,-2878.0,0.00017808,2]
[395048257,1764372671750,-1427.64,0.00017808,2]
[395048258,1764372671760,-947.36,0.00017808,2]
[395048259,1764372671770,-664.96,0.00017808,2]
[395048260,1764372671779,-500.0,0.00017808,2]
[395048261,1764372671789,-1634.1,0.00017808,2]
[395048262,1764372671799,-500.0,0.00017808,2]
[395048263,1764372671808,-500.0,0.00017808,2]
[395048264,1764372671818,-914.62,0.00017808,2]
[395048265,1764372671828,-720.51,0.00017808,2]
[395048266,1764372671837,-2707.42,0.00017808,2]
[395048267,1764372671847,-500.0,0.00017808,2]
[395048268,1764372671856,-2750.36,0.00017808,2]
[395048269,1764372671870,-500.41,0.00017808,2]
[395048270,1764372671879,-523.44,0.00017808,2]
[395048271,1764372671888,-500.0,0.00017808,2]
[395048272,1764372671898,-1042.99,0.00017808,2]
[395048273,1764372671908,-645.02,0.00017808,2]
[395048274,1764372671917,-1245.52,0.00017808,2]
[395048275,1764372671926,-871.52,0.00017808,2]
[395048276,1764372671937,-1853.47,0.00017808,2]
[395048277,1764372671947,-3430.29,0.00017808,2]
[395048278,1764372671956,-730.4,0.00017808,2]
[395048279,1764372671966,-574.26,0.00017808,2]
[395048280,1764372671975,-500.0,0.00017808,2]
[395048281,1764372671985,-3218.16,0.00017808,2]
[395048282,1764372671994,-4526.99,0.00017808,2]
[395048283,1764372672004,-500.0,0.00017808,2]
[395048284,1764372672013,-17227.77,0.00017808,2]
[395048285,1764372672023,-500.0,0.00017808,2]
[395048286,1764372672034,-616.58,0.00017808,2]
[395048287,1764372672043,-3739.05,0.00017808,2]
[395048288,1764372672053,-1046.43,0.00017808,2]
[395048289,1764372672062,-500.0,0.00017808,2]
[395048290,1764372672071,-500.0,0.00017808,2]
[395048291,1764372672081,-500.0,0.00017808,2]
[395048292,1764372672090,-500.0,0.00017808,2]
[395048293,1764372672100,-500.0,0.00017808,2]
[395048294,1764372672109,-500.0,0.00017808,2]
[395048295,1764372672118,-500.0,0.00017808,2]
[395048296,1764372672128,-500.0,0.00017808,2]
[395048297,1764372672138,-500.0,0.00017808,2]
[395048298,1764372672147,-485.50768144,0.00017808,2]
[395048299,1764372672156,-2184.6,0.00017808,2]
[395048300,1764372672166,-711.56,0.00017808,2]
[395048301,1764372672175,-1171.76,0.00017808,2]
[395048302,1764372672184,-727.45,0.00017808,2]
[395048303,1764372672194,-500.0,0.00017808,2]
[395048304,1764372672203,-500.0,0.00017808,2]
[395048305,1764372672212,-1037.69,0.00017808,2]
[395048306,1764372672223,-547.1,0.00017808,2]
[395048307,1764372672232,-500.0,0.00017808,2]
[395048308,1764372672242,-613.0,0.00017808,2]
[395048309,1764372672251,-1720.54,0.00017808,2]
[395048310,1764372672261,-500.0,0.00017808,2]
[395048311,1764372672270,-1980.65,0.00017808,2]
[395048312,1764372672279,-1023.19,0.00017808,2]
[395048313,1764372672289,-500.0,0.00017808,2]
[395048314,1764372672299,-632.55,0.00017808,2]
[395048315,1764372672308,-641.61,0.00017808,2]
[395048316,1764372672317,-500.0,0.00017808,2]
[395048317,1764372672328,-1319.83,0.00017808,2]
[395048318,1764372672338,-4241.92,0.00017808,2]
[395048319,1764372672347,-500.0,0.00017808,2]
[395048320,1764372672357,-529.06,0.00017808,2]
[395048321,1764372672366,-500.0,0.00017808,2]
[395048322,1764372672376,-869.6,0.00017808,2]
[395048323,1764372672385,-7824.54,0.00017808,2]
[395048324,1764372672395,-1352.28,0.00017808,2]
[395048325,1764372672404,-500.0,0.00017808,2]
[395048326,1764372672414,-3967.65,0.00017808,2]
[395048327,1764372672423,-700.5,0.00017808,2]
[395048328,1764372672432,-4443.57,0.00017808,2]
[395048329,1764372672442,-952.39,0.00017808,2]
[395048330,1764372672452,-500.0,0.00017808,2]
[395048331,1764372672461,-2399.87,0.00017808,2]
[395048332,1764372672471,-500.0,0.00017808,2]
[395048333,1764372672480,-500.0,0.00017808,2]
[395048334,1764372672490,-500.0,0.00017808,2]
[395048335,1764372672499,-739.31,0.00017808,2]
[395048336,1764372672509,-699.9,0.00017808,2]
[395048337,1764372672518,-500.0,0.00017808,2]
[395048338,1764372672528,-977.12,0.00017808,2]
[395048339,1764372672538,-631.83,0.00017808,2]
[395048340,1764372672547,-2440.22,0.00017808,2]
[395048341,1764372672557,-1914.45,0.00017808,2]
[395048342,1764372672566,-500.0,0.00017808,2]
[395048343,1764372672576,-972.65,0.00017808,2]
[395048344,1764372672585,-3043.8,0.00017808,2]
[395048345,1764372672595,-593.89,0.00017808,2]
[395048346,1764372672604,-1510.04,0.00017808,2]
[395048347,1764372672613,-1101.92,0.00017808,2]
[395048348,1764372672623,-622.78,0.00017808,2]
[395048349,1764372672632,-3776.01,0.00017808,2]
[395048350,1764372672641,-609.93,0.00017808,2]
[395048351,1764372672651,-594.08,0.00017808,2]
[395048352,1764372672660,-500.0,0.00017808,2]
[395048353,1764372672670,-500.0,0.00017808,2]
[395048354,1764372672679,-500.0,0.00017808,2]
[395048355,1764372672689,-789.87,0.00017808,2]
[395048356,1764372672699,-500.0,0.00017808,2]
[395048357,1764372672709,-538.45,0.00017808,2]
[395048358,1764372672718,-743.61,0.00017808,2]
[395048359,1764372672727,-1519.83,0.00017808,2]
[395048360,1764372672737,-648.6,0.00017808,2]
[395048361,1764372672746,-1080.24,0.00017808,2]
[395048362,1764372672756,-3113.95,0.00017808,2]
[395048363,1764372672765,-1011.32,0.00017808,2]
[395048364,1764372672775,-500.0,0.00017808,2]
[395048365,1764372672785,-1593.85,0.00017808,2]
[395048366,1764372672795,-1169.98,0.00017808,2]
[395048367,1764372672804,-689.09,0.00017808,2]
[395048368,1764372672814,-500.0,0.00017808,2]
[395048369,1764372672823,-3350.26,0.00017808,2]
[395048370,1764372672833,-3410.99,0.00017808,2]
[395048371,1764372672843,-10314.11,0.00017808,2]
[395048372,1764372672852,-3853.28,0.00017808,2]
[395048373,1764372672865,-500.0,0.00017808,2]
[395048374,1764372672874,-500.0,0.00017808,2]
[395048375,1764372672883,-500.0,0.00017808,2]
[395048376,1764372672893,-706.65,0.00017808,2]
[395048377,1764372672902,-500.0,0.00017808,2]
[395048378,1764372672911,-500.0,0.00017808,2]
[395048379,1764372672921,-4235.14,0.00017808,2]
[395048380,1764372672930,-1077.53,0.00017808,2]
[395048381,1764372672940,-2764.79,0.00017808,2]
[395048382,1764372672949,-9314.33,0.00017808,2]
[395048383,1764372672959,-500.0,0.00017808,2]
[395048384,1764372672968,-500.0,0.00017808,2]
[395048385,1764372672978,-500.0,0.00017808,2]
[395048386,1764372672987,-500.0,0.00017808,2]
[395048387,1764372672997,-992.45,0.00017808,2]
[395048388,1764372673006,-500.0,0.00017808,2]
[395048389,1764372673015,-500.0,0.00017808,2]
[395048390,1764372673025,-500.0,0.00017808,2]
[395048391,1764372673034,-500.0,0.00017808,2]
[395048392,1764372673044,-711.68,0.00017808,2]
[395048393,1764372673054,-500.0,0.00017808,2]
[395048394,1764372673063,-2541.01,0.00017808,2]
[395048395,1764372673073,-934.11,0.00017808,2]
[395048396,1764372673082,-500.0,0.00017808,2]
[395048397,1764372673091,-500.0,0.00017808,2]
[395048398,1764372673101,-178.0,0.0001784,2]
[395048399,1764372673110,-178.0,0.00017848,2]
[395048400,1764372673119,-178.0,0.00017855,2]
[395048401,1764372673127,-2500.0,0.00017864,2]
[395048402,1764372673135,-2481.26838956,0.00017864,2]
[395048403,1764372673145,-2402.69336918,0.00017864,2]
[395048404,1764372673154,-500.0,0.00017873,2]
[395048405,1764372673163,-160.0,0.00017933,9]
[395048406,1764372673173,-162.2991358,0.00017959,2]
[395048407,1764372673182,-260.0,0.00017989,2]
[395048408,1764372673192,-400.11473487,0.00018,2]
[395048409,1764372673203,-600.0,0.00018,2]
[395048410,1764372673213,-600.0,0.00018,2]
[395048411,1764372673224,-600.0,0.00018,2]
[395048412,1764372673233,-1140.80143609,0.00018,2]
[395048413,1764372673243,-14138.0,0.00018,2]
[395048414,1764372673252,-178.0,0.00018033,2]
[395048415,1764372673261,-178.0,0.00018051,2]
[395048416,1764372673271,-180.55986495,0.00018056,2]
[395048417,1764372673281,-500.0,0.00018082,2]
[395048418,1764372673290,-500.0,0.00018082,2]
[395048419,1764372673300,-759.29,0.00018082,2]
[395048420,1764372673308,-500.0,0.00018082,2]
[395048421,1764372673318,-500.0,0.00018082,2]
[395048422,1764372673327,-528.19,0.00018082,2]
[395048423,1764372673337,-500.0,0.00018082,2]
[395048424,1764372673346,-577.23930951,0.00018082,2]
[395048425,1764372673355,-500.0,0.00018082,2]